[Event "Early-Titled-Tuesday-Blitz-January-16-2024"]
[Site "Chess.com"]
[Date "2024.01.16"]
[Round "10"]
[White "Zhigalko_Sergei"]
[Black "Byniolus"]
[Result "1-0"]
[WhiteElo "2954"]
[BlackElo "2756"]
[TimeControl "180+1"]
[EndTime "9:58:57 PST"]
[Termination "Zhigalko_Sergei won by resignation"]

1. e4 {[%clk 0:03:00.9]} 1... d5 {[%clk 0:02:57.3]} 2. exd5 {[%clk 0:03:01]}
2... Nf6 {[%clk 0:02:57.7]} 3. d4 {[%clk 0:03:01.1]} 3... Nxd5 {[%clk
0:02:58.1]} 4. c4 {[%clk 0:03:00.6]} 4... Nb6 {[%clk 0:02:58.3]} 5. Nf3 {[%clk
0:03:00.6]} 5... Bg4 {[%clk 0:02:58.2]} 6. c5 {[%clk 0:03:00.6]} 6... N6d7
{[%clk 0:02:57.7]} 7. Nc3 {[%clk 0:02:16.6]} 7... e6 {[%clk 0:02:47.7]} 8. Be2
{[%clk 0:02:00]} 8... Nc6 {[%clk 0:02:39.8]} 9. O-O {[%clk 0:01:54.6]} 9... Be7
{[%clk 0:02:36.3]} 10. h3 {[%clk 0:01:51]} 10... Bh5 {[%clk 0:02:34.2]} 11. Be3
{[%clk 0:01:38]} 11... O-O {[%clk 0:02:32.9]} 12. Qb3 {[%clk 0:01:36]} 12... Qc8
{[%clk 0:02:25.2]} 13. Rad1 {[%clk 0:01:32.7]} 13... Nf6 {[%clk 0:02:21.7]} 14.
d5 {[%clk 0:01:07.6]} 14... exd5 {[%clk 0:02:22.6]} 15. Nxd5 {[%clk 0:01:08.3]}
15... Nxd5 {[%clk 0:02:20.1]} 16. Rxd5 {[%clk 0:01:08.8]} 16... Bg6 {[%clk
0:02:15.4]} 17. Rfd1 {[%clk 0:01:08.7]} 17... Re8 {[%clk 0:02:05.8]} 18. Ne5
{[%clk 0:00:58.1]} 18... Nxe5 {[%clk 0:01:37.1]} 19. Rxe5 {[%clk 0:00:58.4]}
19... h5 {[%clk 0:00:55.9]} 20. Bxh5 {[%clk 0:00:45.3]} 20... Bxh5 {[%clk
0:00:53]} 21. Rxh5 {[%clk 0:00:46.2]} 21... Bf6 {[%clk 0:00:46.5]} 22. Rhd5
{[%clk 0:00:42.6]} 22... b6 {[%clk 0:00:34.3]} 23. Rd7 {[%clk 0:00:41.4]} 23...
Re6 {[%clk 0:00:35.1]} 24. c6 {[%clk 0:00:35.3]} 24... a5 {[%clk 0:00:27.9]} 25.
a4 {[%clk 0:00:30.3]} 25... Qe8 {[%clk 0:00:17.9]} 26. Rxc7 {[%clk 0:00:12.8]}
26... Rxc6 {[%clk 0:00:18]} 27. Rxc6 {[%clk 0:00:13.7]} 27... Qxc6 {[%clk
0:00:18.7]} 28. Qxb6 {[%clk 0:00:07.3]} 28... Qxa4 {[%clk 0:00:18.8]} 29. b3
{[%clk 0:00:06.9]} 29... Qb4 {[%clk 0:00:14.4]} 30. Qxb4 {[%clk 0:00:03.8]}
30... axb4 {[%clk 0:00:15.3]} 31. Bc5 {[%clk 0:00:03.1]} 31... Bc3 {[%clk
0:00:13.4]} 32. g3 {[%clk 0:00:03.4]} 32... Ra3 {[%clk 0:00:13.1]} 33. Rb1
{[%clk 0:00:03.3]} 33... Ra5 {[%clk 0:00:13.4]} 34. Be3 {[%clk 0:00:02.8]} 34...
f5 {[%clk 0:00:13.8]} 35. h4 {[%clk 0:00:02.9]} 35... Kf7 {[%clk 0:00:13.9]} 36.
Kf1 {[%clk 0:00:03.6]} 36... Ke6 {[%clk 0:00:14.1]} 37. Ke2 {[%clk 0:00:04.2]}
37... Kd5 {[%clk 0:00:14.7]} 38. Kd3 {[%clk 0:00:04.6]} 38... Ra2 {[%clk
0:00:13.7]} 39. Rh1 {[%clk 0:00:04.1]} 39... Rb2 {[%clk 0:00:13.2]} 40. Rd1
{[%clk 0:00:04.1]} 40... Rxb3 {[%clk 0:00:12.3]} 41. h5 {[%clk 0:00:04]} 41...
Rb2 {[%clk 0:00:10.6]} 42. Ra1 {[%clk 0:00:04.2]} 42... Kc6 {[%clk 0:00:03.6]}
43. Ra5 {[%clk 0:00:04.2]} 43... Rb1 {[%clk 0:00:03.2]} 44. Rxf5 {[%clk
0:00:04.2]} 44... Rd1+ {[%clk 0:00:03.6]} 45. Kc2 {[%clk 0:00:04.4]} 45... Rd7
{[%clk 0:00:04.5]} 46. Rc5+ {[%clk 0:00:03.5]} 46... Kd6 {[%clk 0:00:05.1]} 47.
Rb5 {[%clk 0:00:02.9]} 47... Kc6 {[%clk 0:00:05.2]} 48. Rc5+ {[%clk 0:00:02.9]}
48... Kd6 {[%clk 0:00:05.6]} 49. Rg5 {[%clk 0:00:03.8]} 49... Rb7 {[%clk
0:00:03.5]} 50. Kb3 {[%clk 0:00:04.1]} 50... Rc7 {[%clk 0:00:01.8]} 51. Bf4+
{[%clk 0:00:03.8]} 51... Kd7 {[%clk 0:00:02.4]} 52. Bxc7 {[%clk 0:00:04.7]}
52... Kxc7 {[%clk 0:00:03.3]} 53. Rg4 {[%clk 0:00:04.8]} 53... Kd6 {[%clk
0:00:03.6]} 54. Rc4 {[%clk 0:00:04.9]} 54... Kd5 {[%clk 0:00:03.8]} 55. f3
{[%clk 0:00:05.2]} 55... Be1 {[%clk 0:00:02.1]} 56. g4 {[%clk 0:00:05.6]} 56...
Bc3 {[%clk 0:00:01.8]} 57. Re4 {[%clk 0:00:05.9]} 57... Kd6 {[%clk 0:00:01.7]}
58. Rxb4 {[%clk 0:00:05.7]} 58... Bxb4 {[%clk 0:00:01.6]} 59. Kxb4 {[%clk
0:00:06.6]} 59... Ke5 {[%clk 0:00:02.5]} 60. g5 {[%clk 0:00:07.1]} 60... Kf5
{[%clk 0:00:02.9]} 61. f4 {[%clk 0:00:07.5]} 61... Kxf4 {[%clk 0:00:03]} 62. h6
{[%clk 0:00:08]} 62... Kxg5 {[%clk 0:00:03.9]} 63. hxg7 {[%clk 0:00:07.5]} 63...
Kf6 {[%clk 0:00:04.8]} 1-0

[Event "Early-Titled-Tuesday-Blitz-January-16-2024"]
[Site "Chess.com"]
[Date "2024.01.16"]
[Round "10"]
[White "MyDream003"]
[Black "otrov-11"]
[Result "1-0"]
[WhiteElo "2881"]
[BlackElo "2523"]
[TimeControl "180+1"]
[EndTime "9:58:59 PST"]
[Termination "MyDream003 won by resignation"]

1. Nf3 {[%clk 0:02:48.2]} 1... Nf6 {[%clk 0:02:59.4]} 2. c4 {[%clk 0:02:44.2]}
2... e6 {[%clk 0:02:56.3]} 3. Nc3 {[%clk 0:02:44.3]} 3... d5 {[%clk 0:02:53]} 4.
d4 {[%clk 0:02:43.8]} 4... Be7 {[%clk 0:02:52.2]} 5. Bf4 {[%clk 0:02:43]} 5...
c6 {[%clk 0:02:50.1]} 6. e3 {[%clk 0:02:43.3]} 6... O-O {[%clk 0:02:49.3]} 7.
Bd3 {[%clk 0:02:42.7]} 7... dxc4 {[%clk 0:02:49.7]} 8. Bxc4 {[%clk 0:02:43.6]}
8... b5 {[%clk 0:02:50]} 9. Bd3 {[%clk 0:02:43.9]} 9... Bb7 {[%clk 0:02:50.6]}
10. O-O {[%clk 0:02:43.6]} 10... a6 {[%clk 0:02:50.2]} 11. Rc1 {[%clk
0:02:43.1]} 11... Nbd7 {[%clk 0:02:49.7]} 12. Ne4 {[%clk 0:02:41.1]} 12... Nxe4
{[%clk 0:02:28.9]} 13. Bxe4 {[%clk 0:02:42]} 13... Rc8 {[%clk 0:02:28.8]} 14.
Qe2 {[%clk 0:02:36.1]} 14... Qb6 {[%clk 0:02:20.1]} 15. Rfd1 {[%clk 0:02:35.2]}
15... c5 {[%clk 0:02:14.2]} 16. Bxb7 {[%clk 0:02:28.2]} 16... Qxb7 {[%clk
0:02:15.1]} 17. dxc5 {[%clk 0:02:26.1]} 17... Nxc5 {[%clk 0:02:15.5]} 18. h3
{[%clk 0:02:26.2]} 18... Rfd8 {[%clk 0:02:07]} 19. Rxd8+ {[%clk 0:02:16]} 19...
Rxd8 {[%clk 0:02:07.9]} 20. Be5 {[%clk 0:01:50.7]} 20... Qd5 {[%clk 0:02:00.7]}
21. b3 {[%clk 0:01:36.4]} 21... Qd3 {[%clk 0:01:40.8]} 22. Qxd3 {[%clk
0:01:16.7]} 22... Nxd3 {[%clk 0:01:37.5]} 23. Rc7 {[%clk 0:01:15.6]} 23... Nxe5
{[%clk 0:01:14.5]} 24. Rxe7 {[%clk 0:00:58.6]} 24... Nxf3+ {[%clk 0:01:08.8]}
25. gxf3 {[%clk 0:00:58.3]} 25... g6 {[%clk 0:01:07.5]} 26. Ra7 {[%clk 0:00:57]}
26... Rd6 {[%clk 0:01:07.6]} 27. f4 {[%clk 0:00:56.3]} 27... Kg7 {[%clk
0:01:05.7]} 28. Kg2 {[%clk 0:00:54.1]} 28... Kf6 {[%clk 0:00:56]} 29. Kf3 {[%clk
0:00:52.4]} 29... Rc6 {[%clk 0:00:56.4]} 30. h4 {[%clk 0:00:46.2]} 30... h6
{[%clk 0:00:56.4]} 31. Ke4 {[%clk 0:00:46.2]} 31... Rd6 {[%clk 0:00:46.4]} 32.
Kf3 {[%clk 0:00:44.1]} 32... Rc6 {[%clk 0:00:46]} 33. e4 {[%clk 0:00:41]} 33...
Rc3+ {[%clk 0:00:27]} 34. Kg2 {[%clk 0:00:37.5]} 34... Rc6 {[%clk 0:00:26.3]}
35. Kg3 {[%clk 0:00:36.3]} 35... Rc3+ {[%clk 0:00:26.3]} 36. f3 {[%clk
0:00:36.8]} 36... Rc6 {[%clk 0:00:26.6]} 37. e5+ {[%clk 0:00:37.5]} 37... Kg7
{[%clk 0:00:25.9]} 38. b4 {[%clk 0:00:26.1]} 38... Rc4 {[%clk 0:00:21.8]} 39. a3
{[%clk 0:00:25.4]} 39... Rc6 {[%clk 0:00:21.7]} 40. Kf2 {[%clk 0:00:25.9]} 40...
Rb6 {[%clk 0:00:16.8]} 41. Rc7 {[%clk 0:00:22.1]} 41... a5 {[%clk 0:00:14]} 42.
Rc5 {[%clk 0:00:18.4]} 42... axb4 {[%clk 0:00:14.1]} 43. axb4 {[%clk 0:00:19.3]}
43... g5 {[%clk 0:00:14.7]} 44. h5 {[%clk 0:00:10.8]} 44... gxf4 {[%clk
0:00:13.9]} 45. Kg2 {[%clk 0:00:11.5]} 45... Rb7 {[%clk 0:00:12]} 46. Kh3 {[%clk
0:00:09.6]} 46... f6 {[%clk 0:00:12.7]} 47. Kg4 {[%clk 0:00:09.7]} 47... fxe5
{[%clk 0:00:12.7]} 48. Rxe5 {[%clk 0:00:10.6]} 48... Kf6 {[%clk 0:00:13.3]} 49.
Kxf4 {[%clk 0:00:10.4]} 49... Rc7 {[%clk 0:00:10]} 50. Rxb5 {[%clk 0:00:09.6]}
50... Rc4+ {[%clk 0:00:10.6]} 51. Kg3 {[%clk 0:00:10.3]} 51... e5 {[%clk
0:00:09.9]} 52. Rb8 {[%clk 0:00:05.1]} 52... Kg5 {[%clk 0:00:09.2]} 53. b5
{[%clk 0:00:05.6]} 53... Kxh5 {[%clk 0:00:08.9]} 54. Re8 {[%clk 0:00:06.2]}
54... Rc5 {[%clk 0:00:04.2]} 55. b6 {[%clk 0:00:05.9]} 55... Rb5 {[%clk
0:00:04.7]} 56. Re6 {[%clk 0:00:04.9]} 56... Kg5 {[%clk 0:00:04.4]} 57. Rxe5+
{[%clk 0:00:04.9]} 57... Rxe5 {[%clk 0:00:03.9]} 58. f4+ {[%clk 0:00:05.2]}
58... Kf5 {[%clk 0:00:04.2]} 59. fxe5 {[%clk 0:00:06.1]} 59... Kxe5 {[%clk
0:00:04]} 60. b7 {[%clk 0:00:07]} 1-0

[Event "Early-Titled-Tuesday-Blitz-January-16-2024"]
[Site "Chess.com"]
[Date "2024.01.16"]
[Round "10"]
[White "valik3504"]
[Black "AndresDelgado77"]
[Result "1-0"]
[WhiteElo "2547"]
[BlackElo "2382"]
[TimeControl "180+1"]
[EndTime "9:58:59 PST"]
[Termination "valik3504 won by checkmate"]

1. d4 {[%clk 0:02:55.2]} 1... Nf6 {[%clk 0:02:54.2]} 2. c4 {[%clk 0:02:53.8]}
2... d6 {[%clk 0:02:50.9]} 3. Nf3 {[%clk 0:02:53.3]} 3... g6 {[%clk 0:02:42.9]}
4. Nc3 {[%clk 0:02:53.1]} 4... Bg7 {[%clk 0:02:36.7]} 5. e4 {[%clk 0:02:53.1]}
5... O-O {[%clk 0:02:36.8]} 6. Be2 {[%clk 0:02:53.5]} 6... c5 {[%clk 0:02:34.7]}
7. d5 {[%clk 0:02:52.2]} 7... a6 {[%clk 0:02:31.5]} 8. a4 {[%clk 0:02:50.8]}
8... Bg4 {[%clk 0:02:31.7]} 9. O-O {[%clk 0:02:46.7]} 9... Bxf3 {[%clk
0:02:29.5]} 10. Bxf3 {[%clk 0:02:46.8]} 10... Nbd7 {[%clk 0:02:24.5]} 11. Be3
{[%clk 0:02:39.9]} 11... Qc7 {[%clk 0:02:17.8]} 12. Be2 {[%clk 0:02:37.2]} 12...
e6 {[%clk 0:02:07.9]} 13. h3 {[%clk 0:02:33.1]} 13... exd5 {[%clk 0:02:05.4]}
14. exd5 {[%clk 0:02:33.2]} 14... Rfe8 {[%clk 0:02:00.1]} 15. Qc2 {[%clk
0:02:14.9]} 15... Re7 {[%clk 0:01:51.7]} 16. Rae1 {[%clk 0:02:11]} 16... Rae8
{[%clk 0:01:51]} 17. g4 {[%clk 0:01:57.5]} 17... Ne4 {[%clk 0:01:43.6]} 18. Nxe4
{[%clk 0:01:51.6]} 18... Rxe4 {[%clk 0:01:43.1]} 19. Bd3 {[%clk 0:01:51.4]}
19... R4e7 {[%clk 0:01:38.9]} 20. Kg2 {[%clk 0:01:33.4]} 20... Bd4 {[%clk
0:01:37.9]} 21. Bd2 {[%clk 0:01:28]} 21... Rxe1 {[%clk 0:01:29.8]} 22. Bxe1
{[%clk 0:01:28.9]} 22... Ne5 {[%clk 0:01:29]} 23. Bd2 {[%clk 0:01:26]} 23... Qe7
{[%clk 0:01:27.1]} 24. Be2 {[%clk 0:01:15.4]} 24... g5 {[%clk 0:00:57.7]} 25.
Bd3 {[%clk 0:00:47.6]} 25... Qf6 {[%clk 0:00:46.3]} 26. Bf5 {[%clk 0:00:47.2]}
26... Ng6 {[%clk 0:00:43.7]} 27. Kh1 {[%clk 0:00:37.7]} 27... Nh4 {[%clk
0:00:39]} 28. Bxh7+ {[%clk 0:00:17.8]} 28... Kg7 {[%clk 0:00:38.8]} 29. Bf5
{[%clk 0:00:13.2]} 29... Nxf5 {[%clk 0:00:29.1]} 30. gxf5 {[%clk 0:00:14.1]}
30... Rh8 {[%clk 0:00:26.1]} 31. Kg2 {[%clk 0:00:13.2]} 31... g4 {[%clk
0:00:24.8]} 32. hxg4 {[%clk 0:00:12.1]} 32... Qh4 {[%clk 0:00:24.5]} 33. Kf3
{[%clk 0:00:08.1]} 33... Re8 {[%clk 0:00:19.4]} 34. Rg1 {[%clk 0:00:03.9]} 34...
Qh3+ {[%clk 0:00:18.5]} 35. Rg3 {[%clk 0:00:03.3]} 35... Qh1+ {[%clk 0:00:17.9]}
36. Rg2 {[%clk 0:00:03.9]} 36... Rh8 {[%clk 0:00:17.8]} 37. Bf4 {[%clk
0:00:03.3]} 37... Rh3+ {[%clk 0:00:12.2]} 38. Bg3 {[%clk 0:00:03.5]} 38... Be5
{[%clk 0:00:12.6]} 39. f6+ {[%clk 0:00:03]} 39... Bxf6 {[%clk 0:00:08.1]} 40.
Qf5 {[%clk 0:00:03.3]} 40... Qd1+ {[%clk 0:00:07.6]} 41. Kf4 {[%clk 0:00:03]}
41... Be5+ {[%clk 0:00:07]} 42. Ke4 {[%clk 0:00:02.5]} 42... Qc2+ {[%clk
0:00:06.2]} 43. Kf3 {[%clk 0:00:02.8]} 43... Qd1+ {[%clk 0:00:05.4]} 44. Ke3
{[%clk 0:00:01.5]} 44... Qe1+ {[%clk 0:00:04.2]} 45. Kf3 {[%clk 0:00:02]} 45...
Qd1+ {[%clk 0:00:03.9]} 46. Ke3 {[%clk 0:00:02.6]} 46... Rh1 {[%clk 0:00:04.3]}
47. Bxe5+ {[%clk 0:00:02.6]} 47... dxe5 {[%clk 0:00:03.1]} 48. Qxe5+ {[%clk
0:00:03.5]} 48... f6 {[%clk 0:00:03.3]} 49. Qe7+ {[%clk 0:00:03.8]} 49... Kg6
{[%clk 0:00:03.4]} 50. Kf4 {[%clk 0:00:03.9]} 50... Qd2+ {[%clk 0:00:02.9]} 51.
Qe3 {[%clk 0:00:04.3]} 51... Qxe3+ {[%clk 0:00:01.7]} 52. Kxe3 {[%clk
0:00:03.9]} 52... Rh3+ {[%clk 0:00:02.3]} 53. f3 {[%clk 0:00:04.1]} 53... Rh1
{[%clk 0:00:02.4]} 54. Kf4 {[%clk 0:00:04.3]} 54... Rb1 {[%clk 0:00:02.6]} 55.
Rd2 {[%clk 0:00:04.5]} 55... Rc1 {[%clk 0:00:02.8]} 56. d6 {[%clk 0:00:04.9]}
56... Kf7 {[%clk 0:00:02.8]} 57. d7 {[%clk 0:00:05.2]} 57... Rxc4+ {[%clk
0:00:03.7]} 58. Kg3 {[%clk 0:00:03.6]} 58... Rxg4+ {[%clk 0:00:03.5]} 59. fxg4
{[%clk 0:00:03.6]} 59... Ke6 {[%clk 0:00:03.3]} 60. d8=Q {[%clk 0:00:03.8]}
60... Ke5 {[%clk 0:00:04.2]} 61. Qd5# {[%clk 0:00:04.1]} 1-0

[Event "Early-Titled-Tuesday-Blitz-January-16-2024"]
[Site "Chess.com"]
[Date "2024.01.16"]
[Round "10"]
[White "dropstoneDP"]
[Black "AlexPapasimakopoulos"]
[Result "1-0"]
[WhiteElo "3018"]
[BlackElo "2670"]
[TimeControl "180+1"]
[EndTime "9:59:02 PST"]
[Termination "dropstoneDP won by checkmate"]

1. e4 {[%clk 0:03:00.9]} 1... e6 {[%clk 0:03:00.1]} 2. d4 {[%clk 0:03:00.7]}
2... d5 {[%clk 0:03:00.7]} 3. e5 {[%clk 0:03:01.4]} 3... c5 {[%clk 0:03:00.7]}
4. c3 {[%clk 0:03:01.9]} 4... Nc6 {[%clk 0:03:01.1]} 5. Nf3 {[%clk 0:03:02.6]}
5... Bd7 {[%clk 0:03:01.3]} 6. Be2 {[%clk 0:03:02.6]} 6... f6 {[%clk 0:03:00.7]}
7. Bb5 {[%clk 0:03:02.6]} 7... Qb6 {[%clk 0:02:56.1]} 8. a4 {[%clk 0:02:59.3]}
8... cxd4 {[%clk 0:02:49.3]} 9. cxd4 {[%clk 0:02:57]} 9... fxe5 {[%clk
0:02:40.6]} 10. Bxc6 {[%clk 0:02:55.7]} 10... Bxc6 {[%clk 0:02:33.7]} 11. Nxe5
{[%clk 0:02:53.2]} 11... Nf6 {[%clk 0:02:33.5]} 12. O-O {[%clk 0:02:50.8]} 12...
Bd6 {[%clk 0:02:30.7]} 13. a5 {[%clk 0:02:33.7]} 13... Qc7 {[%clk 0:02:23.3]}
14. Bf4 {[%clk 0:02:32.6]} 14... O-O {[%clk 0:02:23.1]} 15. Nc3 {[%clk
0:02:27.7]} 15... Nh5 {[%clk 0:02:20.6]} 16. Qxh5 {[%clk 0:01:22.9]} 16... Rxf4
{[%clk 0:02:19.7]} 17. Ne2 {[%clk 0:01:23.5]} 17... Rf5 {[%clk 0:02:11.9]} 18.
Qg4 {[%clk 0:01:21.1]} 18... Bxe5 {[%clk 0:02:12.1]} 19. dxe5 {[%clk 0:01:20.6]}
19... Qxe5 {[%clk 0:01:50.4]} 20. Nd4 {[%clk 0:01:10]} 20... Rf4 {[%clk
0:01:36.3]} 21. Qxe6+ {[%clk 0:01:09]} 21... Qxe6 {[%clk 0:01:36.6]} 22. Nxe6
{[%clk 0:01:09.9]} 22... Rb4 {[%clk 0:01:36.6]} 23. a6 {[%clk 0:01:08]} 23...
Rxb2 {[%clk 0:01:31.1]} 24. Rfc1 {[%clk 0:01:07.4]} 24... Re8 {[%clk 0:01:15.9]}
25. Nd4 {[%clk 0:01:07]} 25... Rf8 {[%clk 0:01:06.1]} 26. f3 {[%clk 0:01:04.5]}
26... Rb4 {[%clk 0:00:57.2]} 27. axb7 {[%clk 0:00:56.9]} 27... Bxb7 {[%clk
0:00:52.1]} 28. Rxa7 {[%clk 0:00:57.2]} 28... Rxd4 {[%clk 0:00:48.8]} 29. Rxb7
{[%clk 0:00:56.9]} 29... Rc4 {[%clk 0:00:49.3]} 30. Re1 {[%clk 0:00:55.3]} 30...
Rc6 {[%clk 0:00:43.4]} 31. Ree7 {[%clk 0:00:55.4]} 31... Rg6 {[%clk 0:00:43.4]}
32. Red7 {[%clk 0:00:55]} 32... h6 {[%clk 0:00:35.6]} 33. Rxd5 {[%clk
0:00:53.1]} 33... Kh7 {[%clk 0:00:34.8]} 34. Kf2 {[%clk 0:00:48.1]} 34... Ra8
{[%clk 0:00:32.8]} 35. Rd2 {[%clk 0:00:48.5]} 35... Re8 {[%clk 0:00:32.1]} 36.
Rb4 {[%clk 0:00:44.6]} 36... Rge6 {[%clk 0:00:32.1]} 37. h4 {[%clk 0:00:44.8]}
37... Re5 {[%clk 0:00:32.4]} 38. g4 {[%clk 0:00:44.2]} 38... h5 {[%clk
0:00:32.5]} 39. g5 {[%clk 0:00:42.2]} 39... R5e6 {[%clk 0:00:29.1]} 40. Kg3
{[%clk 0:00:40.1]} 40... Re2 {[%clk 0:00:27.3]} 41. Rd5 {[%clk 0:00:36.2]} 41...
R2e5 {[%clk 0:00:27.1]} 42. Rd7 {[%clk 0:00:34.8]} 42... R5e7 {[%clk 0:00:27.1]}
43. Rdd4 {[%clk 0:00:34.7]} 43... Rc7 {[%clk 0:00:24.3]} 44. Rb6 {[%clk
0:00:32.1]} 44... Rf8 {[%clk 0:00:23.1]} 45. Rd3 {[%clk 0:00:29.5]} 45... Rfc8
{[%clk 0:00:21.4]} 46. Re6 {[%clk 0:00:25.4]} 46... Rc3 {[%clk 0:00:20.6]} 47.
Rxc3 {[%clk 0:00:17.4]} 47... Rxc3 {[%clk 0:00:21.5]} 48. Kf4 {[%clk 0:00:18]}
48... Rc4+ {[%clk 0:00:21.8]} 49. Re4 {[%clk 0:00:18]} 49... Rc5 {[%clk
0:00:22]} 50. Re5 {[%clk 0:00:17.3]} 50... Rc4+ {[%clk 0:00:22]} 51. Re4 {[%clk
0:00:14.9]} 51... Rc5 {[%clk 0:00:22.6]} 52. Rd4 {[%clk 0:00:15.4]} 52... Rc1
{[%clk 0:00:21.6]} 53. Kf5 {[%clk 0:00:15.6]} 53... Rc5+ {[%clk 0:00:21.5]} 54.
Ke6 {[%clk 0:00:15.4]} 54... Rc6+ {[%clk 0:00:21.4]} 55. Ke5 {[%clk 0:00:10.1]}
55... Rc5+ {[%clk 0:00:21.3]} 56. Rd5 {[%clk 0:00:09.9]} 56... Rc4 {[%clk
0:00:21.9]} 57. f4 {[%clk 0:00:10.3]} 57... Rc8 {[%clk 0:00:14.7]} 58. f5 {[%clk
0:00:08.9]} 58... Re8+ {[%clk 0:00:15.2]} 59. Kf4 {[%clk 0:00:09]} 59... Re7
{[%clk 0:00:15.6]} 60. Rd8 {[%clk 0:00:07]} 60... g6 {[%clk 0:00:12.9]} 61. Rd6
{[%clk 0:00:05.1]} 61... gxf5 {[%clk 0:00:12.9]} 62. Kxf5 {[%clk 0:00:05.7]}
62... Ra7 {[%clk 0:00:09.7]} 63. Kf6 {[%clk 0:00:05.5]} 63... Kg8 {[%clk
0:00:06.5]} 64. Rd8+ {[%clk 0:00:05.4]} 64... Kh7 {[%clk 0:00:06.5]} 65. g6+
{[%clk 0:00:06.3]} 65... Kh6 {[%clk 0:00:07.1]} 66. Rh8+ {[%clk 0:00:07.2]}
66... Rh7 {[%clk 0:00:06.3]} 67. Rxh7# {[%clk 0:00:08.1]} 1-0

[Event "Early-Titled-Tuesday-Blitz-January-16-2024"]
[Site "Chess.com"]
[Date "2024.01.16"]
[Round "10"]
[White "Shield12"]
[Black "francyIM"]
[Result "1-0"]
[WhiteElo "3005"]
[BlackElo "2841"]
[TimeControl "180+1"]
[EndTime "9:59:07 PST"]
[Termination "Shield12 won by resignation"]

1. e4 {[%clk 0:03:00.9]} 1... e5 {[%clk 0:02:58.7]} 2. Nf3 {[%clk 0:03:00.3]}
2... Nc6 {[%clk 0:02:58.7]} 3. Bb5 {[%clk 0:03:00.2]} 3... Nf6 {[%clk
0:02:56.5]} 4. d3 {[%clk 0:02:58.9]} 4... d6 {[%clk 0:02:52.2]} 5. O-O {[%clk
0:02:58.5]} 5... g6 {[%clk 0:02:51.8]} 6. Re1 {[%clk 0:02:58]} 6... Bg7 {[%clk
0:02:50.8]} 7. d4 {[%clk 0:02:57.9]} 7... Bd7 {[%clk 0:02:51]} 8. Bxc6 {[%clk
0:02:55.4]} 8... Bxc6 {[%clk 0:02:50.8]} 9. dxe5 {[%clk 0:02:55.7]} 9... Nxe4
{[%clk 0:02:50.6]} 10. exd6 {[%clk 0:02:55.5]} 10... O-O {[%clk 0:02:50.2]} 11.
dxc7 {[%clk 0:02:55.4]} 11... Qxc7 {[%clk 0:02:51.1]} 12. c3 {[%clk 0:02:55.6]}
12... Rfe8 {[%clk 0:02:49.7]} 13. Be3 {[%clk 0:02:54.8]} 13... Rad8 {[%clk
0:02:47.8]} 14. Qc2 {[%clk 0:02:54.3]} 14... Bb5 {[%clk 0:02:43.9]} 15. Na3
{[%clk 0:02:49.7]} 15... Bd3 {[%clk 0:02:43.7]} 16. Qa4 {[%clk 0:02:49.3]} 16...
a6 {[%clk 0:02:41.5]} 17. Rad1 {[%clk 0:02:48.8]} 17... Re6 {[%clk 0:02:27.9]}
18. Nd4 {[%clk 0:02:39.6]} 18... Bxd4 {[%clk 0:02:27.6]} 19. Bxd4 {[%clk
0:02:38.8]} 19... b5 {[%clk 0:02:11.1]} 20. Qb3 {[%clk 0:02:31.3]} 20... Rde8
{[%clk 0:02:06.8]} 21. Rxd3 {[%clk 0:02:19.6]} 21... Nc5 {[%clk 0:02:06.5]} 22.
Rxe6 {[%clk 0:01:55.7]} 22... Rxe6 {[%clk 0:02:07.1]} 23. Qxe6 {[%clk
0:01:32.6]} 23... Nxe6 {[%clk 0:02:07.1]} 24. Be3 {[%clk 0:01:32.7]} 24... h5
{[%clk 0:02:05.1]} 25. h3 {[%clk 0:01:28.8]} 25... Qc6 {[%clk 0:02:04.6]} 26. b3
{[%clk 0:01:25.1]} 26... g5 {[%clk 0:02:02.3]} 27. Nc2 {[%clk 0:01:21.6]} 27...
f5 {[%clk 0:02:01.2]} 28. f3 {[%clk 0:01:18.2]} 28... g4 {[%clk 0:01:57.9]} 29.
Nd4 {[%clk 0:01:16.8]} 29... Qd5 {[%clk 0:01:42.3]} 30. Rd2 {[%clk 0:01:16.8]}
30... f4 {[%clk 0:01:33.3]} 31. Nxe6 {[%clk 0:00:54]} 31... Qxe6 {[%clk
0:01:32.6]} 32. Rd8+ {[%clk 0:00:54]} 32... Kf7 {[%clk 0:01:31.8]} 33. Bxf4
{[%clk 0:00:53.5]} 33... gxf3 {[%clk 0:01:30.3]} 34. gxf3 {[%clk 0:00:43.7]}
34... Qe1+ {[%clk 0:01:25.2]} 35. Kg2 {[%clk 0:00:38.5]} 35... Qxc3 {[%clk
0:01:19.4]} 36. Rd2 {[%clk 0:00:36.6]} 36... Kg6 {[%clk 0:01:17.4]} 37. h4
{[%clk 0:00:34.5]} 37... a5 {[%clk 0:01:15.2]} 38. Bg5 {[%clk 0:00:33.7]} 38...
a4 {[%clk 0:01:14]} 39. bxa4 {[%clk 0:00:33.7]} 39... bxa4 {[%clk 0:01:14.9]}
40. Kg3 {[%clk 0:00:34.4]} 40... Kf5 {[%clk 0:01:13.9]} 41. Re2 {[%clk
0:00:33.9]} 41... Qd4 {[%clk 0:01:11.3]} 42. Kg2 {[%clk 0:00:32.9]} 42... Qd3
{[%clk 0:01:05]} 43. Rd2 {[%clk 0:00:32.8]} 43... Qc4 {[%clk 0:01:05.4]} 44. Kf2
{[%clk 0:00:31.4]} 44... Ke5 {[%clk 0:01:04.5]} 45. Kg2 {[%clk 0:00:31.2]} 45...
Qc3 {[%clk 0:01:03.6]} 46. Kf2 {[%clk 0:00:30.6]} 46... Qc5+ {[%clk 0:01:02.2]}
47. Kg2 {[%clk 0:00:30.1]} 47... Qb6 {[%clk 0:00:59.6]} 48. Re2+ {[%clk
0:00:28.7]} 48... Kd5 {[%clk 0:00:59.4]} 49. Rd2+ {[%clk 0:00:29]} 49... Kc4
{[%clk 0:00:59.1]} 50. Re2 {[%clk 0:00:28]} 50... Kd3 {[%clk 0:00:59.2]} 51.
Rd2+ {[%clk 0:00:18.9]} 51... Kc3 {[%clk 0:00:57.1]} 52. Re2 {[%clk 0:00:19.2]}
52... Qa6 {[%clk 0:00:54.4]} 53. Rf2 {[%clk 0:00:18.9]} 53... a3 {[%clk
0:00:51.8]} 54. f4 {[%clk 0:00:19.1]} 54... Qc6+ {[%clk 0:00:51.2]} 55. Kg3
{[%clk 0:00:19.2]} 55... Qd6 {[%clk 0:00:48.8]} 56. Kg2 {[%clk 0:00:19.3]} 56...
Qd5+ {[%clk 0:00:47.2]} 57. Kg3 {[%clk 0:00:19.8]} 57... Qf5 {[%clk 0:00:46.9]}
58. Kg2 {[%clk 0:00:18.6]} 58... Qg4+ {[%clk 0:00:46.8]} 59. Kh2 {[%clk
0:00:19.1]} 59... Kd3 {[%clk 0:00:46.2]} 60. f5 {[%clk 0:00:19.1]} 60... Qb4
{[%clk 0:00:36.6]} 61. f6 {[%clk 0:00:19]} 61... Qd6+ {[%clk 0:00:36.8]} 62. Kg2
{[%clk 0:00:19]} 62... Qc6+ {[%clk 0:00:36.9]} 63. Kg1 {[%clk 0:00:19]} 1-0